fUSD/lending_fUSD_20241102
["ID","MTS","AMOUNT","RATE_DAILY","PERIOD"]
[341172499,1730523032314,-150.0,0.00043372,7]
[341172500,1730523032324,-410.74353156,0.00043404,2]
[341172501,1730523032336,-260.89439512,0.00043404,2]
[341172503,1730523037735,-128.36207332,0.00043404,2]
[341172504,1730523037747,-180.71,0.00043425,2]
[341172505,1730523037757,-644.97392668,0.00043497,2]
[341172506,1730523037843,-8510.02147332,0.00043497,2]
[341172507,1730523037852,-200.0,0.00043554,2]
[341172508,1730523037862,-339.952,0.00043787,68]
[341172509,1730523037871,-327.22,0.00043787,10]
[341172510,1730523037881,-150.0,0.00043796,4]
[341172511,1730523037890,-4071.87599951,0.00043797,2]
[341172512,1730523037901,-1966.89684553,0.00043797,2]
[341172513,1730523037955,-661.09988052,0.00043797,2]
[341172514,1730523037967,-28954.1953034,0.00043797,2]
[341172515,1730523038011,-10441.46181616,0.00043797,2]
[341172516,1730523038174,-381.33465368,0.00043797,2]
[341172517,1730523040093,-4953.65413685,0.00043797,2]
[341172519,1730523042827,-1308.29614655,0.00043797,2]
[341172520,1730523042847,-3408.01,0.00043797,2]
[341172521,1730523045649,-46314.2993178,0.00043797,2]
[341172522,1730523045659,-834.7066,0.00043797,2]
[341172523,1730523045669,-279.7947,0.00043797,2]
[341172524,1730523045679,-611.37,0.00043811,2]
[341172525,1730523045688,-500.0,0.00043896,9]
[341172526,1730523045697,-275.24330222,0.00043995,9]
[341172527,1730523045706,-500.0,0.00043999,2]
[341172528,1730523045715,-400.0,0.00044,120]
[341172529,1730523045724,-846.0867808,0.0004403,2]
[341172530,1730523045733,-185.861,0.0004417,2]
[341172531,1730523045742,-150.0,0.00044341,2]
[341172532,1730523045751,-240.0,0.00044384,2]
[341172533,1730523045877,-203.45599322,0.00044555,15]
[341172534,1730523045890,-943.41732012,0.00044555,2]
[341172535,1730523045907,-3676.8728,0.00044555,2]
[341172537,1730523051231,-150.0,0.00018123,2]
[341172538,1730523088424,157.17,0.00015342,2]
[341172540,1730523604614,-500.0,0.0001726,2]
[341172541,1730523695515,157.11,0.00015342,2]
[341172579,1730524231842,-159.8795161,0.00024973,2]
[341172580,1730524231852,-130.9524839,0.00024973,2]
[341172583,1730524232004,-369.0475161,0.00024973,2]
[341172584,1730524232013,-142043.71410475,0.00025,5]
[341172585,1730524232025,-70039.60293561,0.00025,5]
[341172586,1730524232034,-248.13983322,0.00026342,2]
[341172587,1730524232044,-5591.75989495,0.00026342,2]
[341172589,1730524238037,-2.54461176,0.00024999,2]
[341172593,1730524239948,-199.16147834,0.00024999,2]
[341172594,1730524239959,-9891.30803191,0.00026342,2]
[341172595,1730524239971,-183.11039388,0.000359,15]
[341172596,1730524239981,-150.3,0.00036,2]
[341172597,1730524239991,-2016.55,0.00036699,2]
[341172598,1730524240001,-386.48,0.00036699,46]
[341172599,1730524240011,-183.11039381,0.00036873,15]
[341172600,1730524240021,-356.12,0.00036873,2]
[341172601,1730524240030,-183.11039381,0.00037846,15]
[341172602,1730524240040,-183.11039381,0.00038819,15]
[341172603,1730524240050,-183.11039381,0.00039792,15]
[341172604,1730524240063,-213.81,0.00040421,2]
[341172605,1730524240073,-862.98,0.00040538,2]
[341172606,1730524240082,-183.11039381,0.00040764,15]
[341172607,1730524240092,-150.0,0.000414,2]
[341172608,1730524240102,-183.11039381,0.00041737,15]
[341172609,1730524240113,-150.0,0.0004184,2]
[341172610,1730524240123,-274.38,0.00042083,2]
[341172611,1730524240134,-13528.04,0.00042133,2]
[341172612,1730524240144,-2670.0,0.00042283,2]
[341172613,1730524240154,-184.42,0.00042469,2]
[341172614,1730524240163,-1728.0,0.000426,7]
[341172615,1730524240173,-250.0,0.00042603,2]
[341172616,1730524240182,-9746.19,0.00042607,2]
[341172617,1730524240192,-214.62,0.00042686,2]
[341172618,1730524240203,-250.0,0.00042687,2]
[341172619,1730524240213,-151.86,0.00042692,2]
[341172620,1730524240223,-222.6,0.000427,120]
[341172621,1730524240235,-183.11039381,0.0004271,15]
[341172622,1730524240244,-150.0,0.00042789,7]
[341172623,1730524240253,-712.19343203,0.00042802,2]
[341172624,1730524240265,-150.78656797,0.00042802,2]
[341172625,1730524240274,-492.57,0.00042881,2]
[341172626,1730524240283,-359.98343203,0.00042958,2]
[341172627,1730524240295,-280.01656797,0.00042958,2]
[341172628,1730524240305,-2616.56703209,0.00043076,2]
[341172629,1730524241982,-21283.43296791,0.00043076,2]
[341172630,1730524241994,-383.05,0.00043098,2]
[341172631,1730524242003,-5429.39,0.00043132,2]
[341172632,1730524242013,-1500.0,0.0004322,7]
[341172633,1730524242023,-1500.0,0.0004322,2]
[341172634,1730524242034,-1500.0,0.0004333,2]
[341172635,1730524242045,-1500.0,0.0004337,2]
[341172636,1730524242056,-1500.0,0.0004337,7]
[341172637,1730524242066,-151.98,0.00043498,2]
[341172638,1730524242075,-171.55,0.00043513,2]
[341172639,1730524242085,-179.86,0.00043553,2]
[341172640,1730524242096,-183.11039381,0.00043683,15]
[341172641,1730524242107,-360.0,0.0004369,2]
[341172642,1730524242117,-1010.22,0.00043699,2]
[341172643,1730524242126,-169.36396336,0.00043735,28]
[341172644,1730524242136,-2904.0,0.00043739,2]
[341172645,1730524242146,-154.337,0.00043739,2]
[341172646,1730524242157,-1097.489,0.00043739,2]
[341172647,1730524242168,-150.0,0.00043835,9]
[341172648,1730524242178,-529.048016,0.00043835,9]
[341172649,1730524242188,-543.36207893,0.00043835,9]
[341172650,1730524242198,-500.0,0.00043835,9]
[341172651,1730524242207,-493.81,0.00043835,9]
[341172652,1730524242218,-500.0,0.00043835,9]
[341172653,1730524242227,-507.64025252,0.00043835,9]
[341172654,1730524242236,-500.0,0.00043835,9]
[341172655,1730524242245,-577.37,0.00043835,9]
[341172656,1730524242255,-500.0,0.00043835,9]
[341172657,1730524242264,-500.0,0.00043835,9]
[341172658,1730524242378,-528.89688716,0.00043835,9]
[341172659,1730524242389,-500.0,0.00043835,9]
[341172660,1730524242399,-500.0,0.00043835,9]
[341172661,1730524242410,-500.0,0.00043835,9]
[341172662,1730524242419,-530.03,0.00043835,9]
[341172663,1730524242429,-614.88392727,0.00043835,9]
[341172664,1730524242439,-500.0,0.00043835,9]
[341172665,1730524242450,-591.16,0.00043835,9]
[341172666,1730524242460,-541.15129934,0.00043835,9]
[341172667,1730524242474,-524.73175066,0.00043835,9]
[341172668,1730524242484,-522.449525,0.00043835,9]
[341172669,1730524242495,-566.41298024,0.00043835,9]
[341172670,1730524242507,-511.93624054,0.00043835,9]
[341172671,1730524242519,-525.6304941,0.00043835,9]
[341172672,1730524242529,-557.37552442,0.00043835,9]
[341172673,1730524242538,-500.0,0.00043835,9]
[341172674,1730524242548,-500.0,0.00043835,9]
[341172675,1730524242559,-531.26701029,0.00043835,9]
[341172676,1730524242568,-547.85988187,0.00043835,9]
[341172677,1730524242577,-529.26477898,0.00043835,9]
[341172678,1730524242586,-591.34787598,0.00043835,9]
[341172679,1730524242596,-560.57585466,0.00043835,9]
[341172680,1730524242606,-519.2673684,0.00043835,9]
[341172681,1730524242616,-370.25741085,0.00043835,9]
[341172682,1730524242627,-544.90713009,0.00043835,9]
[341172683,1730524242637,-577.07400668,0.00043835,9]
[341172684,1730524242648,-509.54571508,0.00043835,9]
[341172685,1730524242657,-397.54513327,0.00043835,9]
[341172686,1730524242667,-500.0,0.00043835,9]
[341172687,1730524242679,-500.0,0.00043835,9]
[341172688,1730524242689,-534.81314278,0.00043835,9]
[341172689,1730524242700,-500.0,0.00043835,9]
[341172690,1730524242710,-580.24721619,0.00043835,9]
[341172691,1730524242720,-527.32448982,0.00043835,9]
[341172692,1730524242730,-515.50173797,0.00043835,9]
[341172693,1730524242739,-511.95292455,0.00043835,9]
[341172694,1730524242749,-519.63739735,0.00043835,9]
[341172695,1730524242761,-580.03854585,0.00043835,9]
[341172696,1730524242772,-500.0,0.00043835,9]
[341172697,1730524242782,-500.0,0.00043835,9]
[341172698,1730524242790,-500.0,0.00043835,9]
[341172699,1730524242800,-477.35,0.00043835,9]
[341172700,1730524242810,-500.0,0.00043835,9]
[341172701,1730524242819,-500.0,0.00043835,9]
[341172702,1730524242828,-500.0,0.00043835,9]
[341172703,1730524242839,-500.0,0.00043835,9]
[341172704,1730524242848,-593.14715109,0.00043835,9]
[341172705,1730524242858,-585.48737698,0.00043835,9]
[341172706,1730524242868,-500.0,0.00043835,9]
[341172707,1730524242878,-500.0,0.00043835,9]
[341172708,1730524242889,-500.0,0.00043835,9]
[341172709,1730524242900,-368.60106847,0.00043835,9]
[341172710,1730524242911,-500.0,0.00043835,9]
[341172711,1730524242921,-500.0,0.00043835,9]
[341172712,1730524242931,-151.86,0.00043896,2]
[341172713,1730524242942,-400.0,0.000439,16]
[341172714,1730524242952,-800.0,0.00044,16]
[341172715,1730524242961,-2272.78372168,0.00044,4]
[341172716,1730524242973,-1200.0,0.000441,16]
[341172717,1730524242983,-274.38,0.00044187,2]
[341172718,1730524242994,-169.36396335,0.00044196,28]
[341172719,1730524243003,-1600.0,0.000442,16]
[341172720,1730524243012,-2000.0,0.000443,16]
[341172721,1730524243022,-1143.0,0.00044309,30]
[341172722,1730524243031,-400.0,0.000444,16]
[341172723,1730524243040,-150.0,0.00044427,2]
[341172724,1730524243049,-150.0,0.00044447,2]
[341172725,1730524243058,-150.0,0.00044467,2]
[341172726,1730524243073,-150.0,0.0004448,2]
[341172727,1730524243082,-150.0,0.00044484,2]
[341172728,1730524243091,-150.0,0.00044487,2]
[341172729,1730524243100,-150.0,0.00044495,2]
[341172730,1730524243109,-400.0,0.000445,16]
[341172731,1730524243117,-150.0,0.00044524,2]
[341172732,1730524243126,-150.0,0.0004453,2]
[341172733,1730524243135,-3123.93937988,0.00044555,2]
[341172734,1730524243144,-33306.7575,0.00044555,2]
[341172735,1730524243153,-310.32639725,0.0004459,2]
[341172736,1730524243162,-501.05,0.0004459,2]
[341172737,1730524243172,-1806.8454,0.0004459,2]
[341172738,1730524243182,-5800.0,0.00044592,7]
[341172739,1730524243191,-1120.64,0.000446,2]
[341172740,1730524243200,-5800.0,0.000446,7]
[341172741,1730524243209,-400.0,0.000446,16]
[341172742,1730524243219,-150.0,0.00044619,2]
[341172743,1730524243228,-150.0,0.00044623,2]
[341172744,1730524243237,-310.32639723,0.00044623,2]
[341172745,1730524243246,-5923.502,0.00044625,2]
[341172746,1730524243256,-150.0,0.00044628,2]
[341172747,1730524243265,-150.0,0.00044629,2]
[341172748,1730524243274,-172.54072295,0.00044655,16]
[341172749,1730524243283,-509.15902364,0.00044655,3]
[341172750,1730524243292,-509.15902364,0.00044655,3]
[341172751,1730524243302,-150.0,0.00044656,2]
[341172752,1730524243314,-183.11039381,0.00044656,15]
[341172753,1730524243323,-169.36396335,0.00044656,28]
[341172754,1730524243332,-14836.72429466,0.00044656,2]
[341172755,1730524243341,-5563.1555258,0.00044656,2]
[341172756,1730524243350,-458.29916207,0.00044656,120]
[341172757,1730524243359,-310.32639723,0.00044656,2]
[341172758,1730524243369,-217.4905,0.00044656,2]
[341172759,1730524243378,-221.06,0.00044666,30]
[341172760,1730524243387,-150.0,0.00044668,2]
[341172761,1730524243399,-150.5,0.00044676,30]
[341172762,1730524243409,-150.01,0.00044684,2]
[341172763,1730524243419,-2000.0,0.00044685,7]
[341172764,1730524243429,-231.25561102,0.00044685,2]
[341172765,1730524243439,-150.0,0.00044687,2]
[341172766,1730524243450,-500.0,0.00044689,120]
[341172767,1730524243459,-278.75293124,0.00044689,9]
[341172768,1730524243472,-500.0,0.00044689,9]
[341172769,1730524243482,-556.76,0.00044689,9]
[341172770,1730524243493,-177.90183225,0.00044689,9]
[341172771,1730524243503,-500.0,0.00044689,9]
[341172772,1730524243515,-500.0,0.00044689,9]
[341172773,1730524243525,-500.0,0.00044689,9]
[341172774,1730524243535,-500.0,0.00044689,9]
[341172775,1730524243547,-500.0,0.00044689,9]
[341172776,1730524243561,-1274.01602749,0.0004469,30]
[341172777,1730524243570,-64328.29788624,0.0004469,15]
[341172778,1730524243579,-150.0,0.00044691,2]
[341172779,1730524243588,-500.0,0.00044694,120]
[341172780,1730524243598,-440.36565573,0.00044695,120]
[341172781,1730524243609,-165.9872113,0.00044695,2]
[341172782,1730524243619,-1009.9148966,0.00044695,2]
[341172783,1730524243628,-1003.0089473,0.00044695,2]
[341172784,1730524243637,-1898.9973424,0.00044695,2]
[341172785,1730524243647,-500.0,0.000447,2]
[341172786,1730524243656,-500.0,0.000447,2]
[341172787,1730524243665,-803.35,0.000447,30]
[341172788,1730524243674,-500.65,0.000447,2]
[341172789,1730524243684,-323.215321,0.000447,78]
[341172790,1730524243694,-999.1,0.000447,78]
[341172791,1730524243703,-400.0,0.000447,16]
[341172792,1730524243713,-215.4242956,0.00044726,2]
[341172793,1730524243722,-264.8613799,0.00044726,2]
[341172794,1730524243732,-314.2984643,0.00044726,2]
[341172795,1730524243741,-363.7355486,0.00044726,2]
[341172796,1730524243751,-413.1726329,0.00044726,2]
[341172797,1730524243761,-1321.9467378,0.00044726,2]
[341172798,1730524243771,-1633.9785789,0.00044726,2]
[341172799,1730524243780,-1946.0104201,0.00044726,2]
[341172800,1730524243789,-2258.0422612,0.00044726,2]
[341172801,1730524243798,-2570.0741024,0.00044726,2]
[341172802,1730524243808,-1312.907068,0.00044726,2]
[341172803,1730524243819,-1622.8051887,0.00044726,2]
[341172804,1730524243828,-1932.7033094,0.00044726,2]
[341172805,1730524243837,-2242.6014301,0.00044726,2]
[341172806,1730524243846,-2552.4995508,0.00044726,2]
[341172807,1730524243855,-2485.7276096,0.00044726,2]
[341172808,1730524243865,-3072.4578768,0.00044726,2]
[341172809,1730524243875,-3659.188144,0.00044726,2]
[341172810,1730524243884,-4245.9184111,0.00044726,2]
[341172811,1730524243893,-59.36284223,0.00044726,2]
[341172812,1730524245824,-696.11,0.00044726,2]
[341172813,1730524245838,-4077.17583607,0.00044726,2]
[341172814,1730524245848,-315.48160286,0.00044742,16]
[341172815,1730524245859,-700.0,0.00044742,16]
[341172816,1730524245869,-700.0,0.00044742,16]
[341172817,1730524245879,-700.0,0.00044742,16]
[341172818,1730524245888,-700.0,0.00044742,16]
[341172819,1730524245899,-213.25806739,0.00044742,16]
[341172861,1730524247877,150.0,0.00018123,2]
[341172862,1730524382714,-300.0,0.00019725,2]
[341172863,1730524459078,159.14,0.00015342,2]
[341172864,1730524562023,-300.0,0.00019725,2]
[341172866,1730524622372,-300.0,0.00019725,2]
[341172867,1730524803122,-300.0,0.00019725,2]
[341172868,1730524964375,157.32,0.00015342,2]
[341172869,1730525043356,-300.0,0.00019725,2]
[341172870,1730525108634,3860.54,0.00016,2]
[341172871,1730525108661,100000.0,0.00016,2]
[341172872,1730525108686,5331534.90701579,0.00016,2]
[341172873,1730525108710,100000.0,0.00016,2]
[341172874,1730525108737,100000.0,0.00016,2]
[341172875,1730525108763,1207439.0,0.00016,2]
[341172876,1730525108787,100000.0,0.00016,2]
[341172877,1730525108811,363.0,0.00016,2]
[341172878,1730525108837,100000.0,0.00016,2]
[341172879,1730525108862,802622.92941308,0.00016,2]
[341173221,1730525402775,-300.0,0.00019725,2]
[341173236,1730525432059,-420.0,0.00021484,2]
[341173237,1730525432069,-266.0,0.00023401,2]
[341173238,1730525432079,-173.62787862,0.000239,2]
[341173239,1730525432090,-432.0,0.00024,2]
[341173240,1730525432100,-426.9544725,0.000299,2]
[341173241,1730525432110,-1723.39110281,0.000299,2]
[341173242,1730525432144,-6299.43399816,0.000299,2]
[341173243,1730525432155,-150.771,0.0003,2]
[341173244,1730525432165,-203.07123658,0.0003,30]
[341173245,1730525432176,-904.81,0.0004069,2]
[341173246,1730525432186,-250.0,0.00041451,2]
[341173247,1730525432195,-151.66,0.00041478,2]
[341173248,1730525432204,-196.64678006,0.00041865,15]
[341173249,1730525432213,-150.0,0.00041879,4]
[341173250,1730525432222,-26697.85820697,0.0004188,2]
[341173251,1730525432233,-506.14658476,0.0004188,2]
[341173252,1730525432244,-5078.8932889,0.0004188,2]
[341173253,1730525432257,-420.98804803,0.0004188,2]
[341173254,1730525432268,-2704.11559046,0.0004188,2]
[341173257,1730525438177,-351.96466802,0.0004187,10]
[341173258,1730525438190,-521.74533198,0.0004187,10]
[341173259,1730525438200,-20.16266187,0.0004188,2]
[341173260,1730525438271,-293816.49411118,0.0004188,2]
[341173261,1730525438285,-31633.05940664,0.0004188,2]
[341173262,1730525438294,-484.76,0.0004189,14]
[341173263,1730525438303,-34041.54717468,0.00042,30]
[341173264,1730525438315,-276.14857609,0.00042,30]
[341173265,1730525438355,-2770.60908828,0.00042,30]
[341173266,1730525438468,-1533.55899307,0.00042,30]
[341173271,1730525440010,-552.33090042,0.00042,30]
[341173272,1730525440266,-11645.23193615,0.00042,30]
[341173273,1730525440280,-12136.67,0.00042165,2]
[341173274,1730525440290,-1288.80735122,0.00042285,5]
[341173275,1730525440299,-1288.80735122,0.00042297,5]
[341173276,1730525440308,-1288.80735122,0.00042298,5]
[341173277,1730525440317,-1288.80735122,0.00042299,5]
[341173278,1730525440325,-23900.0,0.00042596,2]
[341173279,1730525440336,-150.0,0.00042634,7]
[341173280,1730525440347,-151.66,0.00042647,2]
[341173281,1730525440358,-171.55,0.00042667,2]
[341173282,1730525440368,-191.52,0.00042697,2]
[341173283,1730525440379,-204.92,0.00042789,2]
[341173284,1730525440389,-488.0,0.00042789,2]
[341173285,1730525440399,-12136.67,0.00042842,2]
[341173286,1730525440411,-512.0,0.0004291,2]
[341173287,1730525440420,-3222.01837795,0.0004294,5]
[341173288,1730525440431,-1288.80735122,0.00042948,5]
[341173289,1730525440442,-904.81,0.00042954,2]
[341173290,1730525440451,-3222.01837795,0.0004296,15]
[341173291,1730525440460,-3222.01837795,0.0004297,10]
[341173292,1730525440470,-634.277,0.00042988,2]
[341173293,1730525440480,-558.0,0.00042988,2]
[341173294,1730525440490,-3222.01837795,0.0004299,10]
[341173295,1730525440499,-19312.57775182,0.00043,120]
[341173296,1730525440509,-500.0,0.00043,10]
[341173297,1730525440520,-437.0,0.0004323,2]
[341173298,1730525440529,-151.0,0.00043466,5]
[341173299,1730525440539,-342.893,0.00043466,67]
[341173300,1730525440548,-12136.67,0.0004352,2]
[341173301,1730525440557,-207.94009619,0.00043758,16]
[341173302,1730525440567,-151.66,0.00043817,2]
[341173303,1730525440577,-500.0,0.00043835,9]
[341173304,1730525440587,-500.0,0.00043835,9]
[341173305,1730525440598,-152.0,0.00043944,3]
[341173306,1730525440610,-165.45,0.00043966,2]
[341173307,1730525440620,-500.0,0.00044197,9]
[341173308,1730525440630,-487.1594826,0.00044197,9]
[341173309,1730525440640,-12136.67,0.00044197,2]
[341173310,1730525440650,-3222.01837795,0.00044298,15]
[341173311,1730525440661,-158.89694369,0.0004437,10]
[341173312,1730525440671,-500.0,0.00044373,10]
[341173313,1730525440681,-154.03,0.0004439,2]
[341173314,1730525440691,-150.110214,0.00044398,120]
[341173315,1730525440700,-1611.00918892,0.00044398,10]
[341173316,1730525440711,-567.86,0.00044399,9]
[341173317,1730525440720,-12087.14,0.00044399,9]
[341173318,1730525440730,-12087.14,0.00044399,9]
[341173319,1730525440740,-500.0,0.00044399,9]
[341173320,1730525440750,-500.0,0.00044399,9]
[341173321,1730525440760,-404.03,0.00044399,9]
[341173322,1730525440773,-201.18261641,0.00044399,9]
[341173323,1730525440782,-500.0,0.00044399,9]
[341173324,1730525440792,-507.88,0.00044399,9]
[341173325,1730525440801,-16497.5631,0.000444,2]
[341173326,1730525440810,-293.887,0.000444,2]
[341173327,1730525440819,-294141.56314835,0.000444,2]
[341173328,1730525440833,-12329.54545536,0.000444,2]
[341173329,1730525440844,-54986.93183658,0.000444,2]
[341173330,1730525440855,-492.73427478,0.000444,2]
[341173331,1730525440936,-7398.87294559,0.000444,2]
[341173333,1730525442991,-4846.42589999,0.000444,2]
[341173342,1730525443474,-239.16825093,0.000444,2]
[341173345,1730525443484,-995.24400472,0.000444,2]
[341173348,1730525446003,-4077.17583607,0.000444,2]
[341173349,1730525446196,-1339.58,0.000444,2]
[341173350,1730525446255,-360.08234564,0.000444,2]
[341173351,1730525446271,-3836.184991,0.000444,2]
[341173352,1730525446341,-18553.74271099,0.000444,2]
[341173353,1730525446352,-150.110214,0.00044498,120]
[341173354,1730525446362,-228.23,0.00044499,9]
[341173355,1730525446372,-500.0,0.00044499,9]
[341173356,1730525446381,-1501.01767949,0.00044499,9]
[341173359,1730525777540,250.0,0.00017,2]
[341173360,1730525779489,-300.0,0.00019,2]
[341173361,1730525966196,157.17,0.00015342,2]
[341173362,1730526134291,-150.0,0.00018123,2]
[341173363,1730526278302,150.0,0.00021,3]
[341173381,1730526482654,-300.0,0.00019725,2]
[341173382,1730526603984,-150.0,0.00019725,2]
[341173383,1730526604524,-150.0,0.00019725,2]
[341173384,1730526605507,-150.0,0.00019725,2]
[341173385,1730526607678,-150.0,0.00019725,2]
[341173386,1730526608132,-150.0,0.00019725,2]
[341173387,1730526608657,-150.0,0.00019725,2]
[341173388,1730526611316,-150.0,0.00019725,2]
[341173389,1730526612133,-150.0,0.00019725,2]
[341173390,1730526612813,-150.0,0.00019725,2]
[341173391,1730526614327,-150.0,0.00019725,2]
[341173392,1730526614870,-150.0,0.00019725,2]
[341173393,1730526615464,-150.0,0.00019725,2]
[341173394,1730526615980,-150.0,0.00019725,2]
[341173395,1730526616001,-65.0335077,0.00019725,2]
[341173405,1730526632100,-853.908945,0.00019625,2]
[341173407,1730526632110,-150.0,0.00019725,2]
[341173409,1730526632120,-350.0,0.00021,2]
[341173411,1730526632129,-400.0,0.00023,2]
[341173414,1730526632138,-580.54704837,0.000235,2]
[341173418,1730526632159,-501.45295163,0.000235,2]
[341173419,1730526632168,-450.0,0.00025,2]
[341173420,1730526632177,-482.40795961,0.00027,2]
[341173421,1730526632189,-17.59204039,0.00027,2]
[341173422,1730526632198,-550.0,0.00029,2]
[341173423,1730526632207,-150.0,0.00034548,10]
[341173424,1730526632217,-374.64795961,0.0004105,2]
[341173425,1730526632229,-439.67204039,0.0004105,2]
[341173426,1730526632239,-2088.07795961,0.00041822,2]
[341173427,1730526632251,-967.52855281,0.00041822,2]
[341173428,1730526632264,-3012.72348758,0.00041822,2]
[341173429,1730526632273,-390.4,0.00042454,2]
[341173430,1730526632283,-6068.33,0.00042494,2]
[341173431,1730526632291,-151.66,0.00042545,2]
[341173432,1730526632301,-4566.69734981,0.00042884,2]
[341173433,1730526632313,-561.75930824,0.00042884,2]
[341173434,1730526632323,-3521.34241101,0.00042884,2]
[341173435,1730526632336,-500.0,0.00042884,2]
[341173436,1730526632348,-14740.20093094,0.00042884,2]
[341173437,1730526632359,-191.52,0.00042898,2]
[341173438,1730526632369,-6068.33,0.00043166,2]
[341173439,1730526632378,-609.6,0.00043225,2]
[341173440,1730526632387,-814.32,0.00043314,2]
[341173441,1730526632395,-163.94,0.00043353,2]
[341173442,1730526632406,-274.315,0.00043441,67]
[341173443,1730526632415,-4984.80466906,0.000438,2]
[341173444,1730526632426,-82107.52258072,0.000438,2]
[341173445,1730526632436,-500.0,0.00043835,9]
[341173446,1730526632445,-500.0,0.00043835,9]
[341173447,1730526632454,-408.37748704,0.00043835,9]
[341173448,1730526632463,-6068.33,0.00043838,2]
[341173449,1730526632472,-500.0,0.0004385,30]
[341173450,1730526632481,-1995.0,0.00043865,30]
[341173451,1730526632490,-151.66,0.00043984,2]
[341173452,1730526632499,-8042.61220473,0.00044,120]
[341173453,1730526632509,-167.83,0.00044155,2]
[341173454,1730526632519,-500.0,0.00044197,9]
[341173455,1730526632529,-500.0,0.00044197,9]
[341173456,1730526632538,-373.76,0.00044384,2]
[341173457,1730526632551,-154.85,0.00044384,2]
[341173458,1730526632561,-150.0,0.00044384,2]
[341173459,1730526632571,-150.0,0.00044384,2]
[341173461,1730526632580,-361.12,0.00044384,2]
[341173463,1730526632589,-150.0,0.00044384,2]
[341173464,1730526632600,-150.0,0.00044384,2]
[341173465,1730526632610,-361.12,0.00044384,2]
[341173466,1730526632619,-150.0,0.00044384,2]
[341173467,1730526632629,-361.12,0.00044384,2]
[341173468,1730526632638,-150.0,0.00044384,2]
[341173469,1730526632648,-154.38,0.00044384,2]
[341173470,1730526632657,-150.0,0.00044384,2]
[341173471,1730526632667,-150.0,0.00044384,2]
[341173472,1730526632676,-150.0,0.00044384,2]
[341173473,1730526632686,-150.0,0.00044384,2]
[341173474,1730526632696,-1611.00918892,0.00044398,5]
[341173475,1730526632705,-1611.00918892,0.00044398,5]
[341173476,1730526632716,-1611.00918892,0.00044398,5]
[341173477,1730526632726,-1611.00918892,0.00044398,5]
[341173478,1730526632736,-629.5993268,0.00044399,9]
[341173479,1730526632747,-500.0,0.00044399,9]
[341173480,1730526632757,-674.79,0.00044399,30]
[341173481,1730526632767,-139200.0,0.00044433,7]
[341173482,1730526632778,-23926.8023,0.0004446,2]
[341173483,1730526632788,-2500.0,0.0004446,2]
[341173484,1730526632798,-500.0,0.00044499,9]
[341173485,1730526632809,-500.0,0.00044499,30]
[341173486,1730526632820,-6068.33,0.0004451,2]
[341173487,1730526632829,-500.0,0.00044558,30]
[341173488,1730526632838,-256.9473,0.00044558,2]
[341173489,1730526632847,-500.0,0.0004456,30]
[341173490,1730526632856,-4077.1758,0.0004456,2]
[341173491,1730526632868,-37784.6865,0.0004456,2]
[341173492,1730526632877,-100000.0,0.0004456,2]
[341173493,1730526632886,-500.0,0.00044573,10]
[341173494,1730526632895,-500.0,0.00044573,2]
[341173495,1730526632904,-1008.58,0.000446,2]
[341173496,1730526632912,-155.54827706,0.00044646,28]
[341173497,1730526632922,-500.0,0.00044655,9]
[341173498,1730526632931,-207.94009613,0.00044655,16]
[341173499,1730526632940,-414.72386265,0.00044655,9]